bitfinex-derivatives/quotes_BTCF0:USTF0_20250508
["timestamp","ask_amount","ask_price","bid_price","bid_amount"]
[1746698237807,0.24456,99818.0,99817.0,0.2637366]
[1746698238225,0.4448946,99818.0,99817.0,0.2637366]
[1746698238518,0.4448946,99818.0,99817.0,0.27904031]
[1746698239219,0.4448946,99818.0,99817.0,0.27906605]
[1746698239521,0.4448946,99818.0,99817.0,0.2637366]
[1746698241013,0.4448546,99818.0,99817.0,0.2637366]
[1746698242922,0.5076546,99818.0,99817.0,0.2637366]
[1746698243522,0.5076546,99818.0,99817.0,0.27894863]
[1746698244022,0.4764546,99818.0,99817.0,0.27894863]
[1746698248618,0.4764546,99818.0,99817.0,0.2637366]
[1746698251619,0.4764546,99818.0,99817.0,0.27881565]
[1746698252627,0.4764546,99818.0,99817.0,0.2637366]
[1746698253027,0.4019346,99818.0,99817.0,0.2637366]
[1746698253326,0.4764546,99818.0,99817.0,0.2637366]
[1746698263436,0.24452,99818.0,99817.0,0.2637366]
[1746698263628,0.4448546,99818.0,99817.0,0.2637366]
[1746698266938,0.4756546,99818.0,99817.0,0.2637366]
[1746698275349,0.4011346,99818.0,99817.0,0.2637366]
[1746698285471,0.7619346,99818.0,99817.0,0.2637366]
[1746698292369,0.7932346,99818.0,99817.0,0.2637366]
[1746698294870,0.7932346,99818.0,99817.0,0.27892145]
[1746698297982,0.7932346,99818.0,99817.0,0.2637366]
[1746698298279,0.7932346,99818.0,99817.0,0.27905596]
[1746698299874,0.7932346,99818.0,99817.0,0.27901707]
[1746698301182,0.7932346,99818.0,99817.0,0.24701707]
[1746698304582,0.7932346,99818.0,99817.0,0.24693342]
[1746698305583,0.7932346,99818.0,99817.0,0.24689928]
[1746698307487,0.7932346,99818.0,99817.0,0.24697198]
[1746698309987,0.7932346,99818.0,99817.0,0.24697697]
[1746698311287,0.7932346,99818.0,99817.0,0.24697011]
[1746698313882,0.8676746,99818.0,99817.0,0.24697011]
[1746698315189,0.8676746,99818.0,99817.0,0.24701254]
[1746698321090,0.8676746,99818.0,99817.0,0.24729165]
[1746698322087,0.5068746,99818.0,99817.0,0.24729165]
[1746698322292,0.8676746,99818.0,99817.0,0.24729165]
[1746698322796,0.8363746,99818.0,99817.0,0.24729165]
[1746698323690,0.8363746,99818.0,99817.0,0.2317366]
[1746698323886,0.7619346,99818.0,99817.0,0.24739807]
[1746698324594,0.7619346,99818.0,99817.0,0.24739806]
[1746698332199,0.7619346,99818.0,99817.0,0.24721775]
[1746698334002,0.7619346,99818.0,99817.0,0.24721388]
[1746698336105,0.7619346,99818.0,99817.0,0.24726446]
[1746698336306,0.7925346,99818.0,99817.0,0.24726446]
[1746698339707,0.7925346,99818.0,99817.0,0.2317366]
[1746698339904,0.7925346,99818.0,99817.0,0.24735409]
[1746698340805,0.7925346,99818.0,99817.0,0.04701749]
[1746698341005,0.7925346,99818.0,99817.0,0.24735409]
[1746698341202,0.7925346,99818.0,99817.0,0.01561749]
[1746698341408,0.2003386,99816.0,99815.0,0.00100185]
[1746698341999,0.21043497,99816.0,99815.0,0.00100185]
[1746698342199,0.37843497,99816.0,99815.0,0.00100185]
[1746698342607,0.38043497,99816.0,99815.0,0.00100185]
[1746698343110,0.3703386,99816.0,99815.0,0.00100185]
[1746698346409,0.47052261,99816.0,99815.0,0.00100185]
[1746698351806,0.54492261,99816.0,99815.0,0.00100185]
[1746698355513,0.4447386,99816.0,99815.0,0.00100185]
[1746698358016,0.4447386,99816.0,99815.0,0.20134245]
[1746698358212,0.4447386,99816.0,99815.0,0.21658273]
[1746698358605,0.4447386,99816.0,99815.0,0.27978273]
[1746698361807,0.17,99816.0,99815.0,0.28978273]
[1746698362023,0.17,99816.0,99815.0,0.30978273]
[1746698362214,0.17,99816.0,99815.0,0.27978273]
[1746698362514,0.17,99816.0,99815.0,0.58978273]
[1746698362702,0.17,99816.0,99815.0,0.95058273]
[1746698363315,0.17,99816.0,99815.0,1.04076673]
[1746698364017,0.17,99816.0,99815.0,1.04085356]
[1746698364721,0.17,99816.0,99815.0,0.79085356]
[1746698365216,0.17,99816.0,99815.0,0.83085356]
[1746698365816,0.04732281,99816.0,99815.0,0.83085356]
[1746698366011,0.07436,99832.0,99831.0,0.2003085]
[1746698366211,0.07436,99832.0,99831.0,0.25563561]
[1746698366506,0.00150313,99838.0,99836.0,0.2002984]
[1746698366710,0.00150313,99838.0,99836.0,0.30562551]
[1746698366911,0.00150313,99838.0,99836.0,0.39578951]
[1746698367106,0.196826,99837.0,99836.0,0.39578951]
[1746698367409,0.07436,99854.0,99853.0,0.2002643]
[1746698367811,0.07436,99854.0,99853.0,0.2155858]
[1746698368111,0.24236,99854.0,99853.0,0.2155858]
[1746698368315,0.24236,99854.0,99853.0,0.2648643]
[1746698368510,0.24236,99854.0,99853.0,0.28015539]
[1746698368712,0.24236,99854.0,99853.0,0.29015539]
[1746698368909,0.168,99854.0,99853.0,0.29215539]
[1746698369317,0.168,99854.0,99853.0,0.29415539]
[1746698369918,0.17,99854.0,99853.0,0.29215539]
[1746698370120,0.17,99854.0,99853.0,0.30215539]
[1746698370315,0.17,99854.0,99853.0,0.29215539]
[1746698370617,0.17,99854.0,99853.0,0.29237924]
[1746698371205,0.17,99854.0,99853.0,0.2768643]
[1746698371416,0.177,99854.0,99853.0,0.2748643]
[1746698372020,0.175,99854.0,99853.0,0.2748643]
[1746698372221,0.182,99854.0,99853.0,0.2748643]
[1746698373320,0.182,99854.0,99853.0,0.37501229]
[1746698373521,0.182,99854.0,99853.0,0.39501229]
[1746698374322,0.182,99854.0,99853.0,0.2948643]
[1746698374526,0.182,99854.0,99853.0,0.29026048]
[1746698375117,0.182,99854.0,99853.0,0.2748643]
[1746698375318,0.175,99854.0,99853.0,0.2748643]
[1746698375615,0.182,99854.0,99853.0,0.2748643]
[1746698376327,0.182,99854.0,99853.0,0.2648643]
[1746698376516,0.182,99854.0,99853.0,0.3048643]
[1746698385032,0.182,99854.0,99853.0,0.2648643]
[1746698387332,0.182,99854.0,99853.0,0.28036271]
[1746698389738,0.182,99854.0,99853.0,0.30036271]
[1746698391535,0.182,99854.0,99853.0,0.31036271]
[1746698391730,0.1462657,99854.0,99853.0,0.4105107]
[1746698392837,0.1392657,99854.0,99853.0,0.4105107]
[1746698393138,0.1432657,99854.0,99853.0,0.4105107]
[1746698395037,0.1422657,99854.0,99853.0,0.4105107]
[1746698395235,0.1422657,99854.0,99853.0,0.30036271]
[1746698395437,0.1422657,99854.0,99853.0,0.24736271]
[1746698395738,0.1442657,99854.0,99853.0,0.24736271]
[1746698397343,0.5050657,99854.0,99853.0,0.24736271]
[1746698398231,0.5679657,99854.0,99853.0,0.24736271]
[1746698399733,0.768228,99854.0,99853.0,0.21576271]
[1746698400435,0.5679657,99854.0,99853.0,0.21576271]
[1746698401337,0.5679657,99854.0,99853.0,0.21591979]
[1746698401638,0.843588,99854.0,99853.0,0.01565549]
[1746698401832,0.2002663,99852.0,99851.0,0.15270567]
[1746698402032,1.4043397,99854.0,99844.0,0.20461544]
[1746698402033,0.1902804,99845.0,99844.0,0.20461544]
[1746698402341,0.5510804,99845.0,99844.0,0.20461544]
[1746698402540,0.2002924,99839.0,99838.0,0.20788054]
[1746698402734,0.2002924,99839.0,99838.0,0.2002888]
[1746698403135,0.3682924,99839.0,99838.0,0.2002888]
[1746698403633,0.4013924,99839.0,99838.0,0.2002888]
[1746698404642,0.2002944,99838.0,99837.0,0.20461544]
[1746698404938,0.3306584,99838.0,99837.0,0.20461544]
[1746698405140,0.2003085,99831.0,99830.0,0.01]
[1746698405343,0.6364685,99831.0,99830.0,0.2103105]
[1746698405543,0.7366365,99831.0,99830.0,0.2103105]
[1746698405847,0.3608,99831.0,99830.0,0.01]
[1746698406037,0.4229,99831.0,99830.0,0.3503105]
[1746698406233,0.5288,99831.0,99830.0,0.3503105]
[1746698406633,0.5288,99831.0,99830.0,0.3513105]
[1746698406835,0.5288,99831.0,99830.0,0.42766939]
[1746698407140,0.5288,99831.0,99830.0,0.39766939]
[1746698407649,0.5298,99831.0,99830.0,0.28766939]
[1746698407948,0.56,99831.0,99830.0,0.25736939]
[1746698408246,0.5919,99831.0,99830.0,0.25736939]
[1746698409146,0.5919,99831.0,99830.0,0.05705889]
[1746698409341,0.5919,99831.0,99830.0,0.22696939]
[1746698411448,0.2311,99831.0,99830.0,0.25786939]
[1746698411749,0.169,99831.0,99830.0,0.25786939]
[1746698411951,0.3608,99853.0,99852.0,0.2002663]
[1746698412147,0.5288,99853.0,99852.0,0.2602663]
[1746698412552,0.168,99853.0,99852.0,0.27592519]
[1746698413050,0.168,99853.0,99852.0,0.33742519]
[1746698413251,0.168,99853.0,99852.0,0.34142519]
[1746698413656,0.168,99853.0,99852.0,0.34542519]
[1746698413846,0.168,99853.0,99852.0,0.36108027]
[1746698414152,0.168,99853.0,99852.0,0.26998027]
[1746698415749,0.168,99853.0,99852.0,0.25432519]
[1746698415945,0.168,99853.0,99852.0,0.26998028]
[1746698417647,0.168,99853.0,99852.0,0.26998027]
[1746698421456,0.168,99853.0,99852.0,0.26998011]
[1746698428553,0.7290643,99853.0,99852.0,0.03931381]
[1746698428860,0.2003044,99833.0,99830.0,0.01]
[1746698429063,0.2003044,99833.0,99832.0,0.01716105]
[1746698429064,1.0227444,99833.0,99832.0,0.01716105]
[1746698429257,1.2909124,99833.0,99832.0,0.01716209]
[1746698429563,0.2003346,99818.0,99817.0,0.0302]
[1746698429755,0.2003386,99816.0,99815.0,0.00100185]
[1746698430155,0.168,99816.0,99815.0,0.00100185]
[1746698430458,0.83044,99816.0,99815.0,0.20134245]
[1746698430663,0.83044,99816.0,99815.0,0.23244245]
[1746698430855,0.83044,99816.0,99815.0,0.23444245]
[1746698431864,0.33044,99816.0,99815.0,0.23444245]
[1746698432265,0.5307786,99816.0,99815.0,0.23444245]
[1746698432969,0.8915786,99816.0,99815.0,0.00300185]
[1746698433160,0.2003486,99811.0,99801.0,0.0319]
[1746698433462,0.10018801,99815.0,99794.0,0.2003788]
[1746698433764,0.2003888,99793.0,99792.0,0.2003859]
[1746698433956,0.3608,99795.0,99794.0,0.2003827]
[1746698434156,0.5288,99795.0,99794.0,0.2003827]
[1746698434556,0.7291807,99795.0,99794.0,0.2003827]
[1746698435860,0.7301807,99795.0,99794.0,0.2043827]
[1746698436559,0.7301807,99795.0,99794.0,0.2083827]
[1746698441171,0.7301807,99795.0,99794.0,0.22396073]
[1746698443864,0.8289807,99795.0,99794.0,0.22396073]
[1746698444265,0.8289807,99795.0,99794.0,0.02357803]
[1746698446163,0.8289807,99795.0,99794.0,0.22396073]
[1746698446671,0.8299807,99795.0,99794.0,0.21996073]
[1746698447474,0.8289807,99795.0,99794.0,0.21596073]
[1746698447773,0.8299807,99795.0,99794.0,0.21596073]
[1746698448876,0.8299807,99795.0,99794.0,0.01557803]
[1746698449369,0.8299807,99795.0,99794.0,0.04637803]
[1746698449769,0.8299807,99795.0,99794.0,0.24676073]
[1746698451171,0.8289807,99795.0,99794.0,0.24676073]
[1746698451478,0.8289807,99795.0,99794.0,0.24776073]
[1746698451773,0.8279807,99795.0,99794.0,0.24776073]
[1746698452878,0.8603807,99795.0,99794.0,0.24676073]
[1746698455176,0.8603807,99795.0,99794.0,0.24776073]
[1746698455781,0.8613807,99795.0,99794.0,0.24776073]
[1746698458282,0.8613807,99795.0,99794.0,0.26327069]
[1746698458484,0.8613807,99795.0,99794.0,0.06288799]
[1746698458687,0.8613807,99795.0,99794.0,0.26327069]
[1746698461378,0.661,99795.0,99794.0,0.26327069]
[1746698461582,0.8289807,99795.0,99794.0,0.26327069]
[1746698461783,0.8289807,99795.0,99794.0,0.26319689]
[1746698461981,0.6286,99795.0,99794.0,0.26319689]
[1746698462282,0.8289807,99795.0,99794.0,0.26319689]
[1746698462883,0.8279807,99795.0,99794.0,0.26319689]
[1746698463090,0.4671807,99795.0,99794.0,0.26419689]
[1746698463272,0.8279807,99795.0,99794.0,0.26419689]
[1746698463676,0.8279807,99795.0,99794.0,0.26519689]
[1746698464384,0.8279807,99795.0,99794.0,0.26619689]
[1746698465387,0.8279807,99795.0,99794.0,0.26640746]
[1746698467183,0.8279807,99795.0,99794.0,0.25076073]
[1746698467484,0.8279807,99795.0,99794.0,0.26637231]
[1746698469190,0.8279807,99795.0,99794.0,0.26635712]
[1746698469386,0.6276,99795.0,99794.0,0.26635712]
[1746698470089,0.8279807,99795.0,99794.0,0.26635712]
[1746698470283,0.168,99795.0,99794.0,0.26635712]
[1746698470586,0.36230352,99815.0,99794.0,0.66617842]
[1746698470891,0.36230352,99815.0,99814.0,0.2003426]
[1746698471282,0.36230352,99815.0,99814.0,0.21592063]
[1746698471588,0.36230352,99815.0,99814.0,0.23122356]
[1746698471792,0.36230352,99815.0,99814.0,0.24654553]
[1746698472090,0.36230352,99815.0,99814.0,0.58872953]
[1746698472590,0.3628,99815.0,99814.0,0.83872953]
[1746698472790,0.3628,99815.0,99814.0,0.42895513]
[1746698473290,0.3628,99815.0,99814.0,0.44424076]
[1746698473481,0.3628,99815.0,99814.0,0.44224076]
[1746698473682,0.3648,99815.0,99814.0,0.44224076]
[1746698473881,0.3648,99815.0,99814.0,0.42695513]
[1746698474087,0.3628,99815.0,99814.0,0.42695513]
[1746698474289,0.3738,99815.0,99814.0,0.42895513]
[1746698474488,0.3738,99815.0,99814.0,0.32877113]
[1746698474689,0.3678,99815.0,99814.0,0.32777113]
[1746698474886,0.3738,99815.0,99814.0,0.32877113]
[1746698475087,0.3728,99815.0,99814.0,0.32877113]
[1746698476286,0.3728,99815.0,99814.0,0.31854553]
[1746698476587,0.6731406,99815.0,99814.0,0.2332426]
[1746698477194,0.8411406,99815.0,99814.0,0.24838694]
[1746698477395,0.9058406,99815.0,99814.0,0.24838694]
[1746698478594,0.9058406,99815.0,99814.0,0.2332426]
[1746698479696,0.8058406,99815.0,99814.0,0.2332426]
[1746698480694,0.8058406,99815.0,99814.0,0.0329]
[1746698480897,0.8058406,99815.0,99814.0,0.002]
[1746698481495,0.8058406,99815.0,99814.0,0.01716783]
[1746698485498,0.8058406,99815.0,99814.0,0.01516783]
[1746698485797,0.2003787,99796.0,99795.0,0.2824625]
[1746698485997,0.5611787,99796.0,99795.0,0.29766942]
[1746698486199,0.7291787,99796.0,99795.0,0.29766942]
[1746698486796,0.7291787,99796.0,99795.0,0.36016942]
[1746698487601,0.7311787,99796.0,99795.0,0.36016942]
[1746698487799,0.7311787,99796.0,99795.0,0.36025184]
[1746698488003,0.7321787,99796.0,99795.0,0.36025184]
[1746698488303,0.7351787,99796.0,99795.0,0.36025184]
[1746698488694,0.7321787,99796.0,99795.0,0.36025184]
[1746698488895,0.7361787,99796.0,99795.0,0.36025184]
[1746698489605,0.7361787,99796.0,99795.0,0.36043658]
[1746698491498,0.175,99796.0,99795.0,0.47043658]
[1746698492199,0.007,99796.0,99795.0,0.57064058]
[1746698493091,0.09484,99810.0,99809.0,0.2003526]
[1746698493291,0.09484,99810.0,99809.0,0.21601485]
[1746698493807,0.2951906,99810.0,99809.0,0.21601485]
[1746698494004,0.2951906,99810.0,99809.0,0.31001485]
[1746698494203,0.4711906,99810.0,99809.0,0.31201485]
[1746698494597,0.27084,99810.0,99809.0,0.31201485]
[1746698497006,0.176,99810.0,99809.0,0.36201383]
[1746698497206,0.008,99810.0,99809.0,0.36201383]
[1746698497792,0.008,99810.0,99809.0,0.31201383]
[1746698498003,0.008,99810.0,99809.0,0.32767472]
[1746698498198,0.008,99810.0,99809.0,0.06402212]
[1746698498199,0.176,99810.0,99809.0,0.06402212]
[1746698498404,0.3763506,99810.0,99809.0,0.03332212]
[1746698498601,0.3763506,99810.0,99809.0,0.23367472]
[1746698499401,0.3763506,99810.0,99809.0,0.03332212]
[1746698499701,0.3763506,99810.0,99809.0,0.23367472]
[1746698499905,0.3763506,99810.0,99809.0,0.03332212]
[1746698500106,0.4765426,99810.0,99809.0,0.03332212]
[1746698500610,0.4715426,99810.0,99809.0,0.03632212]
[1746698500907,0.4695426,99810.0,99809.0,0.03932212]
[1746698501301,0.4695426,99810.0,99809.0,0.03532212]
[1746698501502,0.4695426,99810.0,99809.0,0.03932212]
[1746698503311,0.4695426,99810.0,99809.0,0.02366089]
[1746698503812,0.3693506,99810.0,99809.0,0.23967729]
[1746698504203,0.2013506,99810.0,99809.0,0.23967729]
[1746698504408,0.2013506,99810.0,99809.0,0.30097729]
[1746698504806,0.001,99810.0,99809.0,0.30097729]
[1746698505403,0.2931506,99810.0,99809.0,0.28531349]
[1746698505602,0.2931506,99810.0,99809.0,0.30097591]
[1746698506111,0.2931506,99810.0,99809.0,0.4689759]
[1746698508316,0.2931506,99810.0,99809.0,0.3009759]
[1746698508815,0.3263506,99810.0,99809.0,0.3009759]
[1746698513609,0.3263506,99810.0,99809.0,0.30097622]
[1746698513810,0.2931506,99810.0,99809.0,0.28531349]
[1746698514013,0.2931506,99810.0,99809.0,0.30097588]
[1746698514315,0.2013506,99810.0,99809.0,0.46897588]
[1746698514616,0.2931506,99810.0,99809.0,0.46897588]
[1746698515213,0.2931506,99810.0,99809.0,0.28531499]
[1746698515515,0.2931506,99810.0,99809.0,0.28531536]
[1746698515810,0.2931506,99810.0,99809.0,0.2696526]
[1746698516015,0.2931506,99810.0,99809.0,0.28531538]
[1746698516216,0.2931506,99810.0,99809.0,0.45331538]
[1746698516805,0.6539506,99810.0,99809.0,0.45331538]
[1746698517413,0.6539506,99810.0,99809.0,0.46852633]
[1746698518419,0.6539506,99810.0,99809.0,0.45331538]
[1746698519621,0.6539506,99810.0,99809.0,0.4532507]
[1746698520121,0.6549506,99810.0,99809.0,0.4542507]
[1746698520816,0.6549506,99810.0,99809.0,0.4502507]
[1746698521022,0.6549506,99810.0,99809.0,0.4542507]
[1746698521223,0.6549506,99810.0,99809.0,0.2862507]
[1746698522119,0.6549506,99810.0,99809.0,0.4542507]
[1746698522518,0.6549506,99810.0,99809.0,0.4552507]
[1746698522719,0.6549506,99810.0,99809.0,0.45527673]
[1746698523624,0.6529506,99810.0,99809.0,0.44527673]
[1746698523826,0.6861506,99810.0,99809.0,0.45527673]
[1746698524130,0.6861506,99810.0,99809.0,0.28727673]
[1746698524624,0.6861506,99810.0,99809.0,0.28697359]
[1746698525225,0.6861506,99810.0,99809.0,0.45497359]
[1746698526429,0.6549506,99810.0,99809.0,0.45497359]
[1746698526622,0.4546,99810.0,99809.0,0.45497359]
[1746698526838,0.6549506,99810.0,99809.0,0.45497359]
[1746698530243,0.6549506,99810.0,99809.0,0.45531525]
[1746698531441,0.6539506,99810.0,99809.0,0.45431525]
[1746698532342,0.6529506,99810.0,99809.0,0.44931525]
[1746698532537,0.6529506,99810.0,99809.0,0.45031525]
[1746698532951,0.6529506,99810.0,99809.0,0.44931525]
[1746698533242,0.6529506,99810.0,99809.0,0.45031525]
[1746698533747,0.6529506,99810.0,99809.0,0.45031503]
[1746698535248,0.6529506,99810.0,99809.0,0.28231503]
[1746698535451,0.6529506,99810.0,99809.0,0.27831503]
[1746698535650,0.6529506,99810.0,99809.0,0.28231488]
[1746698536150,0.6529506,99810.0,99809.0,0.45031488]
[1746698536554,0.6529506,99810.0,99809.0,0.45131488]
[1746698537050,0.6529506,99810.0,99809.0,0.45231488]
[1746698537551,0.6529506,99810.0,99809.0,0.45231477]
[1746698538851,0.2921506,99810.0,99809.0,0.45231477]
[1746698540647,0.0918,99810.0,99809.0,0.45231477]
[1746698541346,0.0918,99810.0,99809.0,0.45231484]
[1746698543553,0.1248,99810.0,99809.0,0.45231484]
[1746698545047,0.1248,99810.0,99809.0,0.45231483]
[1746698545351,0.09152,99825.0,99822.0,0.2003265]
[1746698545648,0.09152,99825.0,99822.0,0.26598873]
[1746698546357,0.09152,99825.0,99822.0,0.43398873]
[1746698546358,0.12202,99825.0,99822.0,0.43398873]
[1746698546543,0.09152,99825.0,99822.0,0.43398873]
[1746698546744,0.09152,99825.0,99822.0,0.43698873]
[1746698547059,0.09152,99825.0,99822.0,0.43698613]
[1746698547255,0.09152,99825.0,99824.0,0.2003225]
[1746698547550,0.2002995,99836.0,99835.0,0.2002984]
[1746698547742,0.2002995,99836.0,99835.0,0.21595803]
[1746698548147,0.0305,99837.0,99836.0,0.2002984]
[1746698548348,0.0305,99837.0,99836.0,0.28085803]
[1746698548547,0.0305,99837.0,99836.0,0.29093956]
[1746698549253,0.0305,99837.0,99836.0,0.45893956]
[1746698549846,0.0305,99837.0,99836.0,0.44885803]
[1746698550047,0.0315,99837.0,99836.0,0.44885803]
[1746698550252,0.0315,99837.0,99836.0,0.28085803]
[1746698550657,0.0315,99837.0,99836.0,0.28085628]
[1746698550951,0.0325,99837.0,99836.0,0.28085628]
[1746698551153,0.0325,99837.0,99836.0,0.44885628]
[1746698551353,0.0325,99837.0,99836.0,0.44885617]
[1746698551952,0.002,99837.0,99836.0,0.44885617]
[1746698552157,0.0344,99837.0,99836.0,0.28085617]
[1746698552347,0.0672,99837.0,99836.0,0.28085617]
[1746698553142,0.0672,99837.0,99836.0,0.44885617]
[1746698553348,0.0344,99837.0,99836.0,0.44885617]
[1746698554753,0.002,99837.0,99836.0,0.50885617]
[1746698557657,0.002,99837.0,99836.0,0.30855777]
[1746698557862,0.2022964,99837.0,99836.0,0.18365777]
[1746698558159,0.2003406,99815.0,99812.0,0.00150287]
[1746698558456,0.2918206,99815.0,99814.0,0.16832882]
[1746698558665,0.2918206,99815.0,99814.0,0.18353911]
[1746698558860,0.3237206,99815.0,99814.0,0.18353911]
[1746698559258,0.4917206,99815.0,99814.0,0.18353911]
[1746698559459,0.5250206,99815.0,99814.0,0.15266848]
[1746698559757,0.5310206,99815.0,99814.0,0.15366848]
[1746698560360,0.5370206,99815.0,99814.0,0.001]
[1746698560761,0.2003426,99814.0,99813.0,0.0321]
[1746698561263,0.4327426,99814.0,99813.0,0.0321]
[1746698561966,0.4337426,99814.0,99813.0,0.0321]
[1746698562859,0.4347426,99814.0,99813.0,0.0321]
[1746698563462,0.4357426,99814.0,99813.0,0.0321]
[1746698563663,0.4367426,99814.0,99813.0,0.0321]
[1746698564167,0.2687426,99814.0,99813.0,0.0321]
[1746698566170,0.4367426,99814.0,99813.0,0.0321]
[1746698567272,0.2687426,99814.0,99813.0,0.0321]
[1746698569168,0.4367426,99814.0,99813.0,0.0321]
[1746698570177,0.2687426,99814.0,99813.0,0.0321]
[1746698575066,0.3567426,99814.0,99813.0,0.0321]
[1746698575271,0.3567426,99814.0,99797.0,0.18919424]
[1746698575272,0.25658801,99814.0,99797.0,0.18919424]
[1746698575580,0.2003807,99795.0,99791.0,0.0651]
[1746698575776,0.2883807,99795.0,99792.0,0.0309]
[1746698576472,0.3505807,99795.0,99792.0,0.0309]
[1746698577073,0.7113807,99795.0,99792.0,0.0309]
[1746698577271,0.7113807,99795.0,99794.0,0.02155444]
[1746698578978,0.7113807,99795.0,99794.0,0.02355444]
[1746698579472,0.7113807,99795.0,99794.0,0.002]
[1746698580279,0.8793807,99795.0,99794.0,0.002]
[1746698582080,0.7113807,99795.0,99794.0,0.002]
[1746698583272,0.8793807,99795.0,99794.0,0.002]
[1746698584185,0.7113807,99795.0,99794.0,0.002]
[1746698585182,0.8793807,99795.0,99794.0,0.002]
[1746698586983,0.8492807,99795.0,99794.0,0.002]
[1746698587175,0.6812807,99795.0,99794.0,0.002]
[1746698587783,0.2883807,99795.0,99794.0,0.2023827]
[1746698587982,0.2003807,99795.0,99794.0,0.2023827]
[1746698588289,0.2883807,99795.0,99794.0,0.2023827]
[1746698589284,0.2883807,99795.0,99794.0,0.3703827]
[1746698590589,0.2883783,99797.0,99796.0,0.2003743]
[1746698590983,0.2003783,99797.0,99796.0,0.2623743]
[1746698591579,0.2003783,99797.0,99796.0,0.2633743]
[1746698592380,0.2103783,99797.0,99796.0,0.2633743]
[1746698592586,0.2103783,99797.0,99796.0,0.063]
[1746698593186,0.2103783,99797.0,99796.0,0.231]
[1746698594082,0.2103783,99797.0,99796.0,0.4313787]
[1746698594287,0.033,99804.0,99801.0,0.2003687]
[1746698594288,0.5611667,99802.0,99801.0,0.2003687]
[1746698595088,0.5611667,99802.0,99801.0,0.3683687]
[1746698595288,0.5611667,99802.0,99801.0,0.4312687]
[1746698596086,0.5621667,99802.0,99801.0,0.4312687]
[1746698596886,0.5611667,99802.0,99801.0,0.4312687]
[1746698597086,0.2003667,99802.0,99801.0,0.4312687]
[1746698598076,0.2103667,99802.0,99801.0,0.2309]
[1746698598887,0.2416667,99802.0,99801.0,0.2309]
[1746698599184,0.2416667,99802.0,99801.0,0.0629]
[1746698599683,0.2416667,99802.0,99801.0,0.0323]
[1746698600086,0.7704667,99802.0,99801.0,0.0323]
[1746698600785,0.2003787,99796.0,99795.0,0.0323]
[1746698600980,0.3003787,99796.0,99795.0,0.0323]
[1746698601181,0.2003867,99792.0,99791.0,0.0327]
[1746698601384,0.2003867,99792.0,99791.0,0.0649]
[1746698601385,0.6311867,99792.0,99791.0,0.0649]
[1746698601589,0.6311867,99792.0,99791.0,0.2652888]
[1746698601987,0.6311867,99792.0,99791.0,0.2983888]
[1746698602289,0.6635867,99792.0,99791.0,0.2983888]
[1746698602691,0.6635867,99792.0,99791.0,0.2993888]
[1746698602890,0.2103867,99792.0,99791.0,0.3593888]
[1746698603090,0.2103867,99792.0,99791.0,0.3003888]
[1746698603683,0.2003867,99792.0,99791.0,0.3003888]
[1746698604390,0.2319867,99792.0,99791.0,0.3003888]
[1746698605086,0.2319867,99792.0,99791.0,0.4683888]
[1746698605593,0.2319867,99792.0,99791.0,0.2353]
[1746698605788,0.2632867,99792.0,99791.0,0.2353]
[1746698606291,0.2632867,99792.0,99791.0,0.2676888]
[1746698607185,0.2632867,99792.0,99791.0,0.4356888]
[1746698607387,0.2319867,99792.0,99791.0,0.4356888]
[1746698609193,0.2319867,99792.0,99791.0,0.2676888]
[1746698611295,0.2319867,99792.0,99791.0,0.4356888]
[1746698614196,0.2319867,99792.0,99791.0,0.2676888]
[1746698615098,0.2319867,99792.0,99791.0,0.4356888]
[1746698616899,0.2319867,99792.0,99791.0,0.4346888]
[1746698618296,0.2319867,99792.0,99791.0,0.4336888]
[1746698618496,0.2642867,99792.0,99791.0,0.4336888]
[1746698622004,0.6250867,99792.0,99791.0,0.4336888]
[1746698622597,0.5927867,99792.0,99791.0,0.4336888]
[1746698622805,0.2319867,99792.0,99791.0,0.4336888]
[1746698623109,0.2003867,99792.0,99791.0,0.4336888]
[1746698624490,0.0319,99796.0,99791.0,0.4336888]
[1746698624491,0.0500901,99806.0,99791.0,0.3533]
[1746698624695,0.04922296,99830.0,99800.0,0.2003707]
[1746698624696,0.2003663,99803.0,99800.0,0.2003707]
[1746698624999,0.2003681,99802.0,99801.0,0.2003687]
[1746698625191,0.2003681,99802.0,99801.0,0.2615687]
[1746698626104,0.2329634,99804.0,99803.0,0.2003647]
[1746698626301,0.3608,99805.0,99804.0,0.2003627]
[1746698626601,0.5611606,99805.0,99804.0,0.2003627]
[1746698627202,0.5611606,99805.0,99804.0,0.3683627]
[1746698628605,0.5611606,99805.0,99804.0,0.3693627]
[1746698628805,0.5611606,99805.0,99804.0,0.4333627]
[1746698629007,0.5611606,99805.0,99804.0,0.4343627]
[1746698630410,0.3608,99805.0,99804.0,0.4343627]
[1746698630589,0.3608,99805.0,99804.0,0.4643627]
[1746698632100,0.3608,99805.0,99804.0,0.2963627]
[1746698633202,0.3608,99805.0,99804.0,0.2663627]
[1746698634105,0.3608,99805.0,99804.0,0.4343627]
[1746698634604,0.3608,99805.0,99804.0,0.4353627]
[1746698635305,0.3608,99805.0,99804.0,0.2673627]
[1746698635706,0.3608,99805.0,99804.0,0.2653627]
[1746698635907,0.3608,99805.0,99804.0,0.2673627]
[1746698636206,0.3608,99805.0,99804.0,0.4353627]
[1746698640305,0.44476,99815.0,99814.0,0.2003426]
[1746698640694,0.44476,99815.0,99814.0,0.2303426]
[1746698641103,0.08396,99815.0,99814.0,0.2603426]
[1746698641306,0.00150342,99823.0,99822.0,0.2003265]
[1746698641506,0.20182792,99823.0,99822.0,0.2003265]
[1746698642207,0.20182792,99823.0,99822.0,0.4287265]
[1746698642410,0.00150342,99823.0,99822.0,0.4287265]
[1746698642912,0.00350342,99823.0,99822.0,0.4287265]
[1746698644510,0.00350342,99823.0,99822.0,0.5387265]
[1746698644898,0.00550342,99823.0,99822.0,0.4987265]
[1746698645104,0.08392,99841.0,99837.0,0.2002964]
[1746698645304,0.0306,99837.0,99836.0,0.2002984]
[1746698645504,0.0306,99837.0,99836.0,0.2937984]
[1746698646207,0.0324,99840.0,99839.0,0.2002924]
[1746698646411,0.0647,99840.0,99839.0,0.2002924]
[1746698647612,0.0323,99840.0,99839.0,0.2002924]
[1746698647809,0.0323,99840.0,99839.0,0.2602924]
[1746698648111,0.001,99846.0,99845.0,0.2002804]
[1746698649413,0.001,99846.0,99845.0,0.2302804]
[1746698649813,0.001,99846.0,99845.0,0.2312804]
[1746698650110,0.001,99846.0,99845.0,0.2332804]
[1746698650416,0.001,99846.0,99845.0,0.2032804]
[1746698652313,0.2012784,99846.0,99845.0,0.2032804]
[1746698652505,0.0656,99846.0,99845.0,0.2032804]
[1746698653111,0.0964,99846.0,99845.0,0.2032804]